[Event "5th Shenzhen Longgang Masters 2024"]
[Site "Shengzhen"]
[Date "2024.02.29"]
[Round "1.1"]
[White "Erigaisi Arjun"]
[Black "Xu, Xiangyu"]
[Result "1-0"]
[ECO "D86"]
[WhiteElo "2738"]
[BlackElo "2623"]
[Annotator "TA"]
[PlyCount "127"]
[EventDate "2024.02.28"]
[EventType "tourn"]
[EventCountry "CHN"]
[SourceTitle "playchess.com"]
[Source "ChessBase"]
[SourceQuality "1"]
[TimeControl "40/5400+30:1800+30"]

{[%evp 56,127,63,43,51,9,13,0,0,0,6,0,0,0,0,0,0,0,0,0,0,0,0,0,0,-28,0,-9,0,0,0,0,0,0,0,0,0,0,0,0,28,52,81,67,371,277,335,306,735,779,759,745,567,460,692,572,1398,1364,1393,1392,991,663,29981,65,29982,29983,29983,29984,29984,29985,29985,29986,29986,29987]} 1. d4 {[%emt 0:00:13]} Nf6 {[%emt 0:00:11]} 2. c4 {[%emt 0:00:10]} g6 {[%emt 0:00:06]} 3. Nc3 {[%emt 0:00:07]} d5 {[%emt 0:00:05]} 4. cxd5 {[%emt 0:00:06]} Nxd5 {[%emt 0:00:05]} 5. e4 {[%emt 0:00:05]} Nxc3 {[%emt 0:00:08]} 6. bxc3 {[%emt 0:00:05]} Bg7 {[%emt 0:00:07]} 7. Bc4 {[%emt 0:00:07]} c5 {[%emt 0:00:07]} 8. Ne2 {[%emt 0:00:06]} Nc6 {[%emt 0:00:07]} 9. d5 {[%emt 0:00:05] D86: Exchange Grünfeld: Classical Line (7 Bc4).} Ne5 {[%emt 0:14:18]} 10. Bb3 {[%emt 0:00:08]} O-O {[%emt 0:00:07]} 11. O-O {[%emt 0:00:39]} e6 {[%emt 0:15:39]} 12. f4 $146 {[%emt 0:00:44]} ({Predecessor:} 12. Bf4 c4 13. Bxe5 Bxe5 14. Bxc4 Qc7 15. Qd3 Bxh2+ 16. Kh1 exd5 17. Bxd5 Bf4 18. c4 {1-0 Hakobyan,A (2616)-Wang,J (2503) Pan American Intercollegiate-chT 2024 (2.2)}) 12... c4 {[%emt 0:00:24]} 13. Ba3 {[%emt 0:00:06]} Qb6+ {[%emt 0:10:24]} 14. Nd4 {[%emt 0:08:38]} Nd3 {[%emt 0:00:25]} 15. e5 {[%emt 0:41:45]} exd5 {[%emt 0:00:11]} 16. Bc2 {[%emt 0:01:06]} Rd8 {[%emt 0:02:30]} 17. Be7 {[%emt 0:02:47]} Re8 {[%emt 0:14:44]} 18. Bd6 {[%emt 0:00:17]} Bf8 {[%emt 0:18:45]} 19. Bxf8 {[%emt 0:04:43]} Rxf8 {[%emt 0:00:05]} 20. Kh1 {[%emt 0:11:09]} Bd7 {[%emt 0:03:19]} 21. Bxd3 {[%emt 0:02:29]} cxd3 {[%emt 0:00:07]} 22. Qxd3 {[%emt 0:00:05]} Rac8 {[%emt 0:05:11]} 23. f5 {[%emt 0:04:19]} Qc7 {[%emt 0:03:40]} 24. e6 {[%emt 0:01:15]} fxe6 {[%emt 0:00:24]} 25. fxe6 {[%emt 0:02:46]} Ba4 {[%emt 0:00:28]} 26. h3 {[%emt 0:03:53]} Rxf1+ {[%emt 0:01:18]} 27. Qxf1 {[%emt 0:00:06]} Rf8 {[%emt 0:00:06]} 28. Qe1 {[%emt 0:00:41]} Qf4 {[%emt 0:00:15]} 29. Rb1 {[%emt 0:00:37]} b6 {[%emt 0:00:39]} 30. e7 {[%emt 0:01:21]} Re8 {[%emt 0:00:15]} 31. Rb2 {[%emt 0:00:05]} Qf6 {[%emt 0:02:13]} 32. Re2 {[%emt 0:00:21]} Bd7 {[%emt 0:00:11]} 33. g4 {[%emt 0:02:00]} b5 {[%emt 0:00:34]} 34. Re5 {[%emt 0:06:44]} Kf7 {[%emt 0:01:30]} 35. g5 {[%emt 0:00:06]} (35. Rxd5 $2 Bc6 (35... Rxe7 $2 36. Qd1 $19) (35... Qxe7 36. Qxe7+ Kxe7 37. Kh2 $15) 36. Nxc6 Qf3+ 37. Kg1 Qxd5 38. Qf1+ Ke6 $19) 35... Qf4 {[%emt 0:00:37]} 36. h4 {[%emt 0:00:40]} (36. Rxd5 Bxh3 (36... Rxe7 37. Rxd7 Rxd7 38. Qe6+ Kf8 39. Qxd7 $11) 37. Re5 a5) 36... b4 {[%emt 0:01:47]} 37. Re3 {[%emt 0:00:07]} Kg8 {[%emt 0:00:11]} (37... bxc3 $2 38. Rf3 $18) 38. Rf3 {[%emt 0:02:17]} Qd6 {[%emt 0:01:02]} 39. cxb4 {[%emt 0:00:21]} Rxe7 {[%emt 0:00:07]} 40. Qf2 {[%emt 0:00:00]} Re4 {[%emt 0:00:00]} (40... Qxb4 41. Rf8+ Kg7 42. Qf6#) 41. a3 $1 {[%emt 0:00:41]} Qe7 {[%emt 0:01:44]} 42. Kg2 {[%emt 0:04:57]} a6 {[%emt 0:08:56]} 43. Rf4 {[%emt 0:03:21]} Ba4 {[%emt 0:04:47]} 44. Kg1 {[%emt 0:04:36]} Bb5 {[%emt 0:04:52]} 45. Qf3 {[%emt 0:02:10]} Rxf4 {[%emt 0:09:35]} 46. Qxf4 {[%emt 0:00:11]} Qe1+ $1 {[%emt 0:00:07]} 47. Kh2 {[%emt 0:02:14]} Bd7 {[%emt 0:01:58]} 48. Kg2 {[%emt 0:02:24]} Qc3 {[%emt 0:03:50]} 49. Nf3 {[%emt 0:00:52]} Qxa3 $2 {[%emt 0:01:15][%mdl 8192]} (49... Qc6 $14) 50. Qb8+ $18 {[%emt 0:00:42]} Kf7 {[%emt 0:00:04]} 51. Qh8 {[%emt 0:03:28]} Bf5 $2 {[%emt 0:02:21]} (51... Ke7 52. Qxh7+ Kd8 53. Qxg6 Qxb4 54. Qf6+ (54. Qxa6 Qb2+ 55. Kg3 Qb8+ 56. Kf2 Qb2+ 57. Qe2 Qh8 $18) 54... Ke8) 52. Qxh7+ $18 {[%emt 0:01:53]} Ke8 {[%emt 0:01:44]} 53. Qg8+ {[%emt 0:00:30]} Ke7 {[%emt 0:00:04]} 54. Qg7+ {[%emt 0:00:40]} ({Not} 54. Qxd5 Qxb4 55. Qe5+ Kd7 $11) 54... Ke8 {[%emt 0:00:42] [#]} 55. Qe5+ $1 {[%emt 0:01:05]} Kf8 {[%emt 0:00:12]} 56. h5 {[%emt 0:01:20]} (56. Qxd5 Qxb4 57. Qa8+ Kg7 $11) 56... Be4 {[%emt 0:00:37]} 57. Qf6+ {[%emt 0:00:41]} Ke8 {[%emt 0:00:16]} 58. hxg6 {[%emt 0:01:05]} Qxb4 {[%emt 0:03:31]} 59. Qf7+ {[%emt 0:03:51]} ({Worse is} 59. Qxa6 Bxf3+ 60. Kxf3 Qe4+ 61. Kf2 (61. Kg3 Qe3+ 62. Kg2 Qxg5+ 63. Kf3 Qh5+ 64. Kf2 Qf5+ 65. Ke1 Qe4+ 66. Qe2 Qxe2+ 67. Kxe2 d4 $11) 61... Qf5+ 62. Ke3 Qe5+ 63. Kd3 Qe4+ 64. Kc3 Qe1+ 65. Kd4 Qf2+ 66. Ke5 (66. Kxd5 Qf5+ 67. Kd4 Qf4+ 68. Kd5 Qxg5+ 69. Ke4 Qg4+ 70. Ke5 Qg5+ 71. Ke4 Qh4+ 72. Kf3 Qh5+ 73. Kg3 Qg5+ 74. Kh3 Qe3+ 75. Kg4 Qd4+ 76. Kh3 Qe3+ 77. Kh4 Qf2+ 78. Kh5 Qh2+ 79. Kg5 Qd2+ 80. Kh5 Qh2+ 81. Kg5 Qe5+ 82. Kh6 Qh2+ 83. Kg7 Qe5+ 84. Kg8 Qd5+ 85. Kh7 Qh5+ 86. Kg8 Qd5+ 87. Kh8 Qh5+ 88. Kg7 Qe5+ 89. Kh6 Qh2+ 90. Kg5 $11) 66... Qe1+ 67. Kxd5 Qd2+ 68. Ke4 Qg2+ 69. Kf4 Qf2+ 70. Ke4 Qg2+ 71. Kf4 Qd2+ 72. Kf3 Qd5+ 73. Kf4 Qd6+ 74. Qxd6 $11) 59... Kd8 {[%emt 0:00:02]} 60. g7 {[%emt 0:00:06]} Bxf3+ {[%emt 0:00:02]} 61. Kxf3 {[%emt 0:00:06]} Qe4+ {[%emt 0:01:21]} 62. Kg3 {[%emt 0:00:06]} Qe3+ {[%emt 0:00:37]} 63. Kg4 {[%emt 0:00:08]} Qe4+ {[%emt 0:00:29] [#]} 64. Qf4 $1 {[%emt 0:00:08]} 1-0

[Event "5th Shenzhen Longgang Masters 2024"]
[Site "Shengzhen"]
[Date "2024.02.29"]
[Round "1.2"]
[White "Bu, Xiangzhi"]
[Black "Dubov, Daniil"]
[Result "1/2-1/2"]
[ECO "D05"]
[WhiteElo "2671"]
[BlackElo "2708"]
[Annotator "TA"]
[PlyCount "60"]
[EventDate "2024.02.28"]
[EventType "tourn"]
[EventCountry "CHN"]
[SourceTitle "playchess.com"]
[Source "ChessBase"]
[SourceQuality "1"]
[TimeControl "40/5400+30:1800+30"]

{[%evp 12,60,6,0,0,0,18,20,25,22,27,21,22,-1,0,0,0,0,4,0,5,0,8,0,11,5,9,0,0,0,18,0,0,0,0,0,0,0,0,0,0,-3,0,0,0,0,0,0,0,0,0]} 1. Nf3 {[%emt 0:00:06]} d5 {[%emt 0:00:26]} 2. d4 {[%emt 0:00:18]} Nf6 {[%emt 0:00:10]} 3. e3 {[%emt 0:00:26]} e6 {[%emt 0:01:59]} 4. Bd3 {[%emt 0:01:07]} Be7 {[%emt 0:01:01]} 5. O-O {[%emt 0:00:22]} O-O {[%emt 0:00:14]} 6. Nbd2 {[%emt 0:00:53]} b6 {[%emt 0:01:41]} 7. e4 {[%emt 0:01:14]} dxe4 {[%emt 0:00:53]} 8. Nxe4 {[%emt 0:00:05]} Bb7 {[%emt 0:02:34]} 9. Nxf6+ {[%emt 0:03:16]} Bxf6 {[%emt 0:00:34]} 10. Qe2 {[%emt 0:00:23]} Qd6 {[%emt 0:07:30][%cal Ob8d7]} 11. Rd1 {[%emt 0:10:58]} Nd7 {[%emt 0:00:48] The position is equal.} 12. Be4 {[%emt 0:01:50]} Bxe4 {[%emt 0:04:55]} 13. Qxe4 {[%emt 0:00:05]} Qd5 {[%emt 0:01:02]} 14. Qe2 {[%emt 0:00:24]} Qf5 {[%emt 0:03:30]} 15. Be3 {[%emt 0:02:16]} Rfd8 {[%emt 0:01:03]} 16. Qc4 {[%emt 0:06:20]} Qd5 {[%emt 0:00:29]} 17. Qa6 {[%emt 0:02:08]} (17. Qxd5 {simplifies} exd5 18. c3 a5 19. Re1) 17... Ne5 {[%emt 0:14:54]} 18. Nxe5 {[%emt 0:00:48]} Bxe5 {[%emt 0:00:03]} 19. h3 {[%emt 0:00:30]} Bf6 {[%emt 0:01:07]} 20. c3 {[%emt 0:03:55]} Bg5 {[%emt 0:06:56]} 21. Bxg5 {[%emt 0:03:23]} Qxg5 {[%emt 0:00:03]} 22. Qb7 {[%emt 0:00:47]} Qb5 {[%emt 0:05:20]} 23. Rd2 {[%emt 0:01:55][%cal Bd1d2,Bd2e2,Be2e5][%mdl 32]} Qd7 {[%emt 0:00:22]} 24. Re2 {[%emt 0:10:23]} c6 {[%emt 0:01:22]} 25. Qxd7 {[%emt 0:02:58]} Rxd7 $11 {[%emt 0:00:02] KRR-KRR} 26. a4 {[%emt 0:00:41]} a5 {[%emt 0:00:18]} 27. Re5 {[%emt 0:02:19]} Kf8 {[%emt 0:01:30]} 28. Rae1 {[%emt 0:01:46]} Rad8 {[%emt 0:01:37]} 29. f4 {[%emt 0:00:31]} Rd5 {[%emt 0:00:23]} 30. Kf2 {[%emt 0:00:29]} Ke7 {[%emt 0:00:52] An uneventful encounter.   Weighted Error Value: White=0.04 (flawless) /Black=0.04 (flawless) .  OK:         	White=8     	Black=5} 1/2-1/2

[Event "5th Shenzhen Longgang Masters 2024"]
[Site "Shengzhen"]
[Date "2024.02.29"]
[Round "1.3"]
[White "Giri, Anish"]
[Black "Artemiev, Vladislav"]
[Result "1-0"]
[ECO "C84"]
[WhiteElo "2749"]
[BlackElo "2711"]
[Annotator "TA"]
[PlyCount "53"]
[EventDate "2024.02.28"]
[EventType "tourn"]
[EventCountry "CHN"]
[SourceTitle "playchess.com"]
[Source "ChessBase"]
[SourceQuality "1"]
[TimeControl "40/5400+30:1800+30"]

{[%evp 20,53,29,12,38,29,45,38,39,25,40,30,60,56,161,160,345,350,348,347,282,221,231,183,283,242,476,512,500,508,495,494,1600,1608,1598,1571]} 1. e4 {[%emt 0:00:04]} e5 {[%emt 0:00:31]} 2. Nf3 {[%emt 0:00:06]} Nc6 {[%emt 0:00:18]} 3. Bb5 {[%emt 0:00:14]} a6 {[%emt 0:01:20]} 4. Ba4 {[%emt 0:01:03]} Nf6 {[%emt 0:00:22]} 5. O-O {[%emt 0:00:28]} Be7 {[%emt 0:00:55]} 6. d3 {[%emt 0:00:54]} b5 {[%emt 0:01:13]} 7. Bb3 {[%emt 0:00:55]} O-O {[%emt 0:02:43]} 8. a4 {[%emt 0:02:08]} Rb8 {[%emt 0:03:18]} 9. axb5 {[%emt 0:00:58]} axb5 {[%emt 0:00:12]} 10. Nc3 {[%emt 0:00:54][%cal Bb1c3,Bc3e2,Be2g3][%mdl 32]} d6 {[%emt 0:00:42]} 11. h3 {[%emt 0:01:35]} h6 {[%emt 0:09:32]} 12. Be3 {[%emt 0:05:41]} Re8 {[%emt 0:05:16]} 13. Qd2 {[%emt 0:07:37][%cal Oe3h6]} Be6 {[%emt 0:17:15] White is slightly better.} 14. Bxe6 {[%emt 0:00:44]} fxe6 {[%emt 0:00:07]} 15. Ne2 {[%emt 0:00:27]} Qc8 {[%emt 0:21:32] Prevents Ra6.} 16. Ng3 {[%emt 0:03:39][%cal Oe3h6]} Nd8 {[%emt 0:01:45] [#]} (16... Qd7 $14) 17. Bxh6 $1 $18 {[%emt 0:10:21]} gxh6 $2 {[%emt 0:02:01]} (17... Nf7 $16) 18. Qxh6 {[%emt 0:00:13]} Nf7 {[%emt 0:04:54]} 19. Qg6+ {[%emt 0:00:28]} Kf8 {[%emt 0:00:07]} 20. Nh2 {[%emt 0:08:07]} Ra8 {[%emt 0:13:58]} 21. Rae1 {[%emt 0:01:27][%cal Ba1e1,Be1e3,Be3f3][%mdl 1056] [#] f4 would now be deadly. White has strong compensation.} Bd8 {[%emt 0:10:44]} (21... Nh8 $142 22. Qh6+ Kg8) 22. Re3 $40 {[%emt 0:10:42][%mdl 128] aiming for Rf3. Black is in trouble.} Nh8 $2 {[%emt 0:02:11]} (22... Qd7) 23. Qh6+ {[%emt 0:00:29] White is clearly winning.} Kf7 {[%emt 0:00:17]} 24. Rf3 {[%emt 0:01:47] Threatening mate with Qh7+.} Rg8 {[%emt 0:00:12]} 25. Nh5 {[%emt 0:01:12]} Rg6 {[%emt 0:00:21]} (25... Ke8 $142 26. Nxf6+ Bxf6 27. Rxf6 Kd7) 26. Qxh8 {[%emt 0:01:33] White wants to mate with Ng4.} Be7 {[%emt 0:00:05]} 27. Qh7+ {[%emt 0:00:07] White took control after the opening.   Weighted Error Value: White=0.14 (very precise) /Black=0.65.  Loses game:     	---       	Black=1      Mistake:       	---       	Black=4      Inaccurate:     	---       	Black=1      OK:         	White=7     	Black=4      Best:        	White=2     	Black=2      Strong:       	White=1     	---} 1-0

[Event "5th Shenzhen Longgang Masters 2024"]
[Site "Shengzhen"]
[Date "2024.02.29"]
[Round "1.4"]
[White "Ma, Qun"]
[Black "Yu, Yangyi"]
[Result "1/2-1/2"]
[ECO "E10"]
[WhiteElo "2651"]
[BlackElo "2720"]
[Annotator "TA"]
[PlyCount "85"]
[EventDate "2024.02.28"]
[EventType "tourn"]
[EventCountry "CHN"]
[SourceTitle "playchess.com"]
[Source "ChessBase"]
[SourceQuality "1"]
[TimeControl "40/5400+30:1800+30"]

{[%evp 9,85,18,22,17,22,22,25,23,24,22,12,14,21,19,75,66,56,54,123,56,70,61,42,52,35,43,38,0,24,24,37,39,82,80,131,76,88,87,94,56,65,57,44,62,62,59,64,60,57,58,65,65,65,65,65,65,65,65,65,65,65,65,65,65,65,65,65,65,65,0,65,0,0,0,65,0,0,0]} 1. d4 {[%emt 0:00:11]} Nf6 {[%emt 0:00:15]} 2. c4 {[%emt 0:00:17]} e6 {[%emt 0:00:13]} 3. Nf3 {[%emt 0:00:22]} h6 {[%emt 0:01:05]} 4. Nc3 {[%emt 0:00:39]} Bb4 {[%emt 0:02:58]} 5. Qc2 {[%emt 0:01:18]} c5 {[%emt 0:04:37]} 6. dxc5 {[%emt 0:00:09]} Na6 {[%emt 0:00:27] [#]} 7. c6 $1 {[%emt 0:03:38]} bxc6 {[%emt 0:02:06]} 8. g3 {[%emt 0:00:15] White has an edge.} O-O {[%emt 0:08:16]} 9. Bg2 {[%emt 0:00:32]} d5 {[%emt 0:01:19]} 10. O-O {[%emt 0:00:53]} Bb7 {[%emt 0:01:20]} 11. Rd1 {[%emt 0:23:35]} c5 {[%emt 0:05:14]} (11... Re8 $11) 12. cxd5 {[%emt 0:04:35]} exd5 {[%emt 0:00:15]} 13. Nh4 {[%emt 0:10:35][%cal Oc3d5]} Nc7 {[%emt 0:22:23]} (13... Bxc3 $14 14. bxc3 Bc6) 14. Na4 {[%emt 0:14:46]} (14. Nf5 $16) 14... Ne6 $14 {[%emt 0:02:53]} 15. a3 {[%emt 0:03:22]} Ba5 {[%emt 0:00:12]} (15... Nd4 $2 16. Rxd4 cxd4 17. axb4 $18) 16. Nxc5 {[%emt 0:02:11]} Nxc5 {[%emt 0:00:59]} 17. Qxc5 {[%emt 0:01:58]} Bb6 {[%emt 0:00:55]} 18. Qb4 {[%emt 0:04:58]} Re8 {[%emt 0:02:51] Prevents Be3} 19. Nf5 {[%emt 0:04:23] Be3 would now be deadly.} a5 {[%emt 0:15:36]} 20. Qb3 {[%emt 0:03:59]} Ba6 {[%emt 0:03:50]} 21. Be3 {[%emt 0:02:16]} (21. Bxd5 Nxd5 (21... Bxe2 $2 22. Bxf7+ Kh7 23. Rxd8 $18) 22. Rxd5 Qf6 $14 (22... Bxf2+ 23. Kxf2 Rxe2+ 24. Kf3 $11)) 21... Rb8 {[%emt 0:05:59]} (21... Bxe3 $142 22. Nxe3 Bxe2) 22. Qc3 {[%emt 0:04:43] White is much more active.} (22. Bxd5 $142 Nxd5 23. Rxd5) 22... Bxe3 $16 {[%emt 0:02:10]} 23. Nxe3 {[%emt 0:01:34][%cal Rg2d5]} Qb6 {[%emt 0:00:11]} 24. b4 {[%emt 0:05:19]} (24. Bxd5 Qxb2 25. Qxa5 (25. Qxb2 Rxb2 26. Rd4 Bxe2 $11) 25... Nxd5 26. Qxd5 Bxe2 $11) (24. Nxd5 {is more complex.} Nxd5 25. Bxd5 Rxe2 26. Qf3) 24... axb4 {[%emt 0:00:44]} 25. Qxb4 {[%emt 0:02:31]} Qxb4 {[%emt 0:07:48]} 26. axb4 {[%emt 0:00:01]} Bxe2 {[%emt 0:00:06]} 27. Rd4 {[%emt 0:00:55]} Red8 {[%emt 0:00:36]} 28. Re1 {[%emt 0:00:44]} ({Of course not} 28. Bxd5 Bf3 29. Ra5 Rbc8 30. Bxf3 (30. Rc4 Nxd5 31. Rxd5 Bxd5 $19) 30... Rxd4 $17) 28... Ba6 {[%emt 0:03:10]} 29. Nxd5 {[%emt 0:01:47]} Nxd5 {[%emt 0:00:08]} 30. Rxd5 {[%emt 0:00:08]} (30. Bxd5 Bb7 31. Red1 Bxd5 32. Rxd5 Rxd5 33. Rxd5 Rxb4 $17) 30... Rxd5 {[%emt 0:00:08]} 31. Bxd5 {[%emt 0:00:02]} Rxb4 $14 {[%emt 0:00:27][%mdl 4096] Endgame. KRB-KRB} 32. Re8+ {[%emt 0:01:42]} Kh7 {[%emt 0:00:05]} 33. Bxf7 {[%emt 0:00:53] [#] Hoping for Bg8+.} Bc4 {[%emt 0:00:59]} 34. Bxc4 {[%emt 0:00:59]} Rxc4 {[%emt 0:00:04] KR-KR} 35. h4 {[%emt 0:00:07]} h5 {[%emt 0:00:14]} 36. Kg2 {[%emt 0:00:06]} Rc7 {[%emt 0:00:25]} 37. Kf3 {[%emt 0:00:06]} g6 {[%emt 0:00:03]} 38. Ke4 {[%emt 0:00:54]} Kg7 {[%emt 0:00:06]} 39. Ke5 {[%emt 0:01:09]} (39. Kd3 $14) 39... Rc5+ {[%emt 0:00:43]} ({Black should play} 39... Rc2 $1 $11 40. Re7+ Kf8) 40. Ke6 {[%emt 0:00:00]} (40. Kd4 $14 Rc2 41. Ke3) 40... Rc6+ $11 {[%emt 0:00:00]} 41. Ke5 {[%emt 0:00:28]} (41. Kd5 $11 Rc2 42. Re7+ Kf6 43. Re6+ Kg7 44. Re7+ Kf6 45. Re6+ Kg7 46. Re7+) 41... Rc5+ $14 {[%emt 0:00:25]} 42. Ke6 {[%emt 0:00:04]} ({Better is} 42. Kf4 $14) 42... Rc6+ $11 {[%emt 0:00:03]} 43. Ke5 {[%emt 0:00:05] Weighted Error Value: White=0.14 (very precise) /Black=0.13 (very precise) .  Mistake:       	White=6     	Black=4      Inaccurate:     	White=2     	Black=1      OK:         	White=10    	Black=15     Best:        	White=3     	Black=4} 1/2-1/2

[Event "5th Shenzhen Longgang Masters 2024"]
[Site "Shengzhen"]
[Date "2024.03.01"]
[Round "2.1"]
[White "Xu, Xiangyu"]
[Black "Yu, Yangyi"]
[Result "0-1"]
[ECO "C68"]
[WhiteElo "2623"]
[BlackElo "2720"]
[Annotator "TA"]
[PlyCount "80"]
[EventDate "2024.02.28"]
[EventType "tourn"]
[EventCountry "CHN"]
[SourceTitle "playchess.com"]
[Source "ChessBase"]
[SourceQuality "1"]
[TimeControl "40/5400+30:1800+30"]

{[%evp 16,80,-10,-33,0,-56,-52,-73,-69,-81,-66,-67,-61,-67,-63,-62,-59,-63,-5,-72,-73,-75,-87,-120,-104,-105,-93,-126,-122,-122,-116,-136,-115,-158,-152,-156,-156,-168,-153,-145,-164,-165,-164,-149,-158,-159,-112,-115,-114,-117,-120,-120,-122,-146,-153,-215,-216,-225,-225,-481,-481,-481,-466,-885,-784,-1191,-466]} 1. e4 {[%emt 0:00:03]} e5 {[%emt 0:00:25]} 2. Nf3 {[%emt 0:00:11]} Nc6 {[%emt 0:00:11]} 3. Bb5 {[%emt 0:00:08]} a6 {[%emt 0:01:34]} 4. Bxc6 {[%emt 0:00:08]} dxc6 {[%emt 0:00:13]} 5. O-O {[%emt 0:00:06]} Qd6 {[%emt 0:07:30]} 6. d4 {[%emt 0:01:35]} exd4 {[%emt 0:01:57]} 7. Nxd4 {[%emt 0:00:16]} Bd7 {[%emt 0:02:11]} 8. Nc3 {[%emt 0:05:23]} O-O-O {[%emt 0:02:46]} 9. Be3 {[%emt 0:04:26]} Nh6 {[%emt 0:08:07]} 10. Nf3 {[%emt 0:01:52]} ({Better is} 10. f3 $11) 10... Ng4 $15 {[%emt 0:02:32]} 11. Qxd6 {[%emt 0:02:53]} Bxd6 {[%emt 0:00:27] Black is better.} 12. Bd2 {[%emt 0:01:11]} Rhe8 {[%emt 0:06:17]} 13. Rad1 {[%emt 0:02:32]} b5 {[%emt 0:07:00]} 14. h3 {[%emt 0:07:27]} Ne5 {[%emt 0:01:58]} 15. Nxe5 {[%emt 0:04:54]} Bxe5 {[%emt 0:00:08]} 16. b3 {[%emt 0:00:12]} h6 {[%emt 0:12:14]} (16... f5 $15 17. Ne2 fxe4) 17. f3 {[%emt 0:13:54]} (17. g4 $11) 17... f5 $17 {[%emt 0:04:42]} 18. Rfe1 {[%emt 0:19:18]} c5 {[%emt 0:02:01]} 19. Nd5 {[%emt 0:05:02]} fxe4 {[%emt 0:00:34]} 20. fxe4 {[%emt 0:00:18]} Be6 {[%emt 0:03:30]} 21. Ne3 {[%emt 0:03:59]} Rd7 {[%emt 0:07:45] Black has more active pieces. White is weak on the dark squares} 22. Bc1 {[%emt 0:05:59]} Bd4 {[%emt 0:00:23] A strong pair of Bishops.} 23. Kh1 {[%emt 0:00:12]} Rde7 {[%emt 0:04:52]} 24. Rf1 {[%emt 0:00:33]} Bg8 {[%emt 0:01:56]} 25. Nf5 {[%emt 0:04:16]} Rxe4 {[%emt 0:00:32]} 26. Ba3 {[%emt 0:00:16]} Re2 {[%emt 0:05:29]} 27. Nxd4 {[%emt 0:02:28]} cxd4 {[%emt 0:00:05]} 28. Rxd4 {[%emt 0:00:18]} Rxc2 {[%emt 0:00:05]} 29. Rf8 {[%emt 0:00:07]} Rxf8 {[%emt 0:00:14]} 30. Bxf8 {[%emt 0:00:05]} Rxa2 {[%emt 0:08:18][%mdl 4096] Endgame. KRB-KRB} (30... c5 $142 31. Rd3 c4 (31... Rxa2 32. Bxc5 g6 33. b4 $15) 32. bxc4 Bxc4 (32... Rxa2 33. cxb5 axb5 34. Rg3 $11)) 31. b4 {[%emt 0:00:07]} h5 {[%emt 0:01:01]} 32. Bxg7 {[%emt 0:00:14]} a5 {[%emt 0:02:35]} 33. bxa5 {[%emt 0:00:21]} Rxa5 {[%emt 0:00:13]} 34. g4 {[%emt 0:02:50]} hxg4 {[%emt 0:00:40]} 35. hxg4 {[%emt 0:00:07]} (35. h4 $17) 35... c5 $19 {[%emt 0:01:52]} 36. Rd6 {[%emt 0:01:46]} b4 {[%emt 0:01:05]} 37. g5 $2 {[%emt 0:00:20] [#]} (37. Kg2) 37... c4 {[%emt 0:00:43] Black is clearly winning.} 38. g6 {[%emt 0:00:06]} Kc7 {[%emt 0:00:48] Wards off Rb6} 39. Rd2 {[%emt 0:05:37]} (39. Rd1 $142 Rh5+ 40. Kg2) 39... c3 {[%emt 0:01:48]} 40. Rc2 {[%emt 0:00:00]} Kc6 {[%emt 0:00:00] Weighted Error Value: White=0.57/Black=0.10 (very precise) .  Mistake:       	White=5     	Black=2      Inaccurate:     	White=4     	---        OK:         	White=14    	Black=15     Best:        	White=1     	Black=2} (40... Bd5+ $142 41. Kg1 Be4 42. Rxc3+ bxc3 43. Bxc3 Ra2) 0-1

[Event "5th Shenzhen Longgang Masters 2024"]
[Site "Shengzhen"]
[Date "2024.03.01"]
[Round "2.2"]
[White "Artemiev, Vladislav"]
[Black "Ma, Qun"]
[Result "1-0"]
[ECO "C67"]
[WhiteElo "2711"]
[BlackElo "2651"]
[Annotator "TA"]
[PlyCount "63"]
[EventDate "2024.02.28"]
[EventType "tourn"]
[EventCountry "CHN"]
[SourceTitle "playchess.com"]
[Source "ChessBase"]
[SourceQuality "1"]
[TimeControl "40/5400+30:1800+30"]

{[%evp 24,63,0,0,0,0,0,0,0,0,0,0,0,0,37,63,40,36,70,81,197,179,408,394,492,425,488,488,502,515,523,492,525,518,527,314,522,531,520,514,468,365]} 1. e4 {[%emt 0:00:13]} e5 {[%emt 0:00:23]} 2. Nf3 {[%emt 0:00:19]} Nc6 {[%emt 0:00:14]} 3. Bb5 {[%emt 0:00:23]} Nf6 {[%emt 0:00:14][%cal Bg8f6,Bf6e4,Be4d6,Bd6f5][%mdl 32]} 4. O-O {[%emt 0:00:40]} Nxe4 {[%emt 0:00:13]} 5. d4 {[%emt 0:00:29]} Nd6 {[%emt 0:00:14]} 6. Bxc6 {[%emt 0:00:30]} dxc6 {[%emt 0:00:08]} 7. dxe5 {[%emt 0:00:08]} Nf5 {[%emt 0:00:08]} 8. Qxd8+ {[%emt 0:00:33]} Kxd8 {[%emt 0:00:05]} 9. h3 {[%emt 0:01:04]} Be7 {[%emt 0:00:29]} 10. Rd1+ {[%emt 0:28:31]} Ke8 {[%emt 0:00:51]} 11. g4 {[%emt 0:00:30]} Nh4 {[%emt 0:01:53]} 12. Nxh4 {[%emt 0:00:13]} Bxh4 {[%emt 0:00:06]} 13. Nc3 {[%emt 0:06:29]} h5 {[%emt 0:00:33]} 14. f3 {[%emt 0:07:33]} f5 {[%emt 0:16:39][%cal Rh5g4]} 15. exf6 {[%emt 0:01:39]} gxf6 {[%emt 0:00:06] The position is equal.} 16. Bf4 {[%emt 0:18:16]} hxg4 {[%emt 0:02:39]} 17. hxg4 {[%emt 0:02:15][%cal Og1g2]} f5 {[%emt 0:58:26]} 18. g5 {[%emt 0:00:47][%cal Of4e5]} (18. Bxc7 fxg4 19. fxg4 Bxg4 $15) 18... Kf7 {[%emt 0:01:26] Black is weak on the dark squares} 19. Be5 {[%emt 0:10:26]} Re8 {[%emt 0:03:55]} 20. Bf6 {[%emt 0:00:09]} (20. Bxc7 Bxg5 21. Kg2 Rg8 $15) 20... Kg6 {[%emt 0:06:43]} 21. f4 {[%emt 0:00:30] Kg2 is the strong threat.} b6 {[%emt 0:01:13]} (21... Re6 $16 {might work better.}) 22. Rd3 $18 {[%emt 0:03:29]} Kh5 $2 {[%emt 0:00:42]} (22... Ba6) 23. Rh3 {[%emt 0:05:40]} Kg4 {[%emt 0:00:02]} 24. Kh2 {[%emt 0:00:10]} Bf2 {[%emt 0:00:02][%cal Oe8e3] Repels Rg1+} 25. Kg2 {[%emt 0:04:50] Threatening mate with Rah1.} Re3 {[%emt 0:00:53] [#]} 26. Nd1 $1 {[%emt 0:01:33]} Rg3+ {[%emt 0:01:22]} 27. Rxg3+ {[%emt 0:00:06]} (27. Kxf2 Rxh3 28. Ne3+ Kh5 $11 (28... Kxf4 29. Ng2+ Kg4 30. Ne3+ Kh5 31. Ng2 $11)) 27... Bxg3 {[%emt 0:00:02]} 28. Be5 {[%emt 0:01:09] Hoping for Ne3+.} ({Weaker is} 28. Ne3+ Kxf4 29. Rf1+ Kxe3 $16) 28... Bh4 {[%emt 0:00:18]} 29. Ne3+ {[%emt 0:00:19]} Kh5 {[%emt 0:00:01]} 30. Rh1 {[%emt 0:00:37] White is clearly winning.} Bb7 {[%emt 0:03:29]} 31. Kf1 {[%emt 0:02:58]} (31. Bxc7 c5+ 32. Kg1 Bxh1 33. Kxh1 Bxg5 (33... Rc8 34. Nd5 $17) 34. fxg5 Re8 35. Nxf5 Kxg5 $14) 31... Rd8 {[%emt 0:00:55]} 32. g6 {[%emt 0:01:21] Weighted Error Value: White=0.00 (flawless) /Black=0.36.  Mistake:       	---       	Black=2      Inaccurate:     	---       	Black=3      OK:         	White=11    	Black=8      Best:        	White=3     	---        Strong:       	White=1     	---} ({Not} 32. Bxc7 Rd2 $16) 1-0